fUST/lending_fUST_20240606
["ID","MTS","AMOUNT","RATE_DAILY","PERIOD"]
[328626786,1717626619286,500.0,0.00029668,40]
[328626787,1717626619595,500.0,0.00029668,40]
[328626788,1717626620164,594.7,0.00029668,40]
[328626807,1717626632255,-1138.11370458,0.00014849,2]
[328626809,1717626632267,-844.18300745,0.00014849,2]
[328626811,1717626632277,-2112.24824961,0.00014849,2]
[328626812,1717626632286,-11089.38713808,0.0001485,2]
[328626813,1717626632295,-9582.6962167,0.0001485,2]
[328626814,1717626632304,-3069.90171711,0.00014851,2]
[328626815,1717626632313,-7913.37404345,0.00014852,2]
[328626816,1717626632323,-208.01072495,0.00014994,2]
[328626817,1717626632332,-286.47075578,0.00015,2]
[328626818,1717626632341,-157.03683052,0.00017999,2]
[328626819,1717626632352,-570.19147568,0.00018,2]
[328626820,1717626632361,-224.93840949,0.0002,2]
[328626821,1717626632372,-155.00680195,0.0002,2]
[328626822,1717626632381,-931.42086602,0.0002,2]
[328626823,1717626632391,-681.40708193,0.0002002,2]
[328626824,1717626632400,-4323.50360801,0.00020386,2]
[328626825,1717626632410,-153.0,0.00020438,2]
[328626826,1717626632419,-230.74540435,0.00020496,2]
[328626827,1717626632428,-343.75048238,0.00020595,2]
[328626828,1717626632437,-375.59132242,0.00020595,2]
[328626829,1717626632448,-209.56640665,0.00020595,2]
[328626830,1717626632457,-500.0,0.00020595,2]
[328626831,1717626632467,-500.0,0.00020595,2]
[328626832,1717626632476,-474.07050244,0.00020595,2]
[328626833,1717626632485,-594.9818564,0.00020595,2]
[328626834,1717626632494,-357.82715266,0.00020595,2]
[328626835,1717626632503,-500.0,0.00020595,2]
[328626836,1717626632512,-500.0,0.00020595,2]
[328626837,1717626632522,-547.8911576,0.00020595,2]
[328626838,1717626632531,-500.0,0.00020595,2]
[328626839,1717626632540,-500.0,0.00020595,2]
[328626840,1717626632549,-310.03313779,0.00020595,2]
[328626841,1717626632559,-500.0,0.00020595,2]
[328626842,1717626632568,-500.0,0.00020595,2]
[328626843,1717626632577,-191.91846675,0.00020595,2]
[328626844,1717626632586,-412.41074226,0.00020595,2]
[328626845,1717626632595,-500.0,0.00020595,2]
[328626846,1717626632605,-500.0,0.00020595,2]
[328626847,1717626632614,-541.50855587,0.00020595,2]
[328626848,1717626632625,-499.99999999,0.00020595,2]
[328626849,1717626632634,-28231.15682041,0.00020596,2]
[328626860,1717626638458,-1306.77718842,0.00020596,2]
[328626861,1717626638470,-7717.07775507,0.00020596,2]
[328627114,1717626641030,617.46,0.00029668,40]
[328627138,1717626642710,-3424.43769009,0.00020596,2]
[328627141,1717626642722,-3410.7654644,0.00020596,2]
[328627142,1717626642731,-8015.64866414,0.00020597,2]
[328627143,1717626642740,-471.86986171,0.00020597,2]
[328627144,1717626642750,-151.0,0.00020829,2]
[328627145,1717626642760,-151.0,0.00020829,2]
[328627146,1717626642770,-230.74540431,0.00020847,2]
[328627147,1717626642779,-623.0703541,0.00021021,2]
[328627148,1717626642789,-230.74540431,0.00021198,2]
[328627149,1717626642798,-153.0,0.0002137,2]
[328627150,1717626642807,-153.0,0.0002137,2]
[328627151,1717626642818,-153.0,0.0002137,2]
[328627152,1717626642827,-153.0,0.0002137,2]
[328627153,1717626642836,-153.0,0.0002137,2]
[328627154,1717626642846,-151.0,0.000215,2]
[328627155,1717626642855,-151.0,0.000215,2]
[328627156,1717626642864,-3000.0,0.000215,2]
[328627157,1717626642873,-151.0,0.000215,2]
[328627158,1717626642882,-151.0,0.000215,2]
[328627159,1717626642892,-151.0,0.000215,2]
[328627160,1717626642903,-151.0,0.000215,2]
[328627161,1717626642913,-151.0,0.000215,2]
[328627162,1717626642921,-151.0,0.000215,2]
[328627163,1717626642930,-151.0,0.000215,2]
[328627164,1717626642939,-165.928436,0.000215,2]
[328627165,1717626642949,-165.928436,0.000215,2]
[328627166,1717626642959,-151.0,0.000215,2]
[328627167,1717626642968,-151.0,0.000215,2]
[328627168,1717626642980,-151.0,0.000215,2]
[328627169,1717626642989,-151.0,0.000215,2]
[328627170,1717626642998,-151.0,0.000215,2]
[328627171,1717626643107,-151.0,0.000215,2]
[328627172,1717626643117,-151.0,0.000215,2]
[328627173,1717626643127,-151.0,0.000215,2]
[328627174,1717626643136,-196.920478,0.000215,2]
[328627175,1717626643145,-169.041988,0.000215,2]
[328627176,1717626643154,-169.041988,0.000215,2]
[328627177,1717626643163,-151.0,0.0002151,2]
[328627178,1717626643172,-3000.0,0.0002151,2]
[328627179,1717626643182,-3000.0,0.0002152,2]
[328627181,1717626643192,-3000.0,0.0002153,2]
[328627183,1717626643200,-306.0,0.00021534,2]
[328627185,1717626643210,-151.0,0.0002154,2]
[328627186,1717626643219,-3000.0,0.0002154,2]
[328627187,1717626643228,-151.0,0.0002154,2]
[328627188,1717626643237,-197.125999,0.0002154,2]
[328627189,1717626643246,-151.0,0.0002154,2]
[328627190,1717626643255,-151.0,0.0002154,2]
[328627191,1717626643264,-249.14616,0.0002154,2]
[328627192,1717626643273,-165.928436,0.0002154,2]
[328627193,1717626643282,-165.928436,0.0002154,2]
[328627195,1717626643291,-151.0,0.0002154,2]
[328627197,1717626643300,-151.0,0.0002154,2]
[328627199,1717626643309,-151.0,0.0002154,2]
[328627200,1717626643318,-151.0,0.0002154,2]
[328627201,1717626643327,-151.0,0.0002154,2]
[328627202,1717626643336,-151.0,0.0002154,2]
[328627203,1717626643345,-169.041988,0.0002154,2]
[328627204,1717626643354,-169.041988,0.0002154,2]
[328627205,1717626643363,-163.73354267,0.00021544,2]
[328627206,1717626643373,-230.74540431,0.00021549,2]
[328627207,1717626643382,-18.34285008,0.0002155,2]
[328627208,1717626643396,-132.65714992,0.0002155,2]
[328627209,1717626643405,-192.10339641,0.0002155,2]
[328627210,1717626643416,-675.01,0.0002155,2]
[328627211,1717626643576,-2132.88660359,0.0002155,2]
[328627212,1717626643586,-3000.0,0.0002156,2]
[328627213,1717626643595,-3000.0,0.0002157,2]
[328627214,1717626643604,-190.126555,0.0002158,2]
[328627215,1717626643613,-3000.0,0.0002158,2]
[328627216,1717626643622,-156.633037,0.0002158,2]
[328627217,1717626643632,-151.0,0.0002158,2]
[328627218,1717626643641,-165.928436,0.0002158,2]
[328627219,1717626643650,-165.928436,0.0002158,2]
[328627220,1717626643660,-151.0,0.0002158,2]
[328627221,1717626643669,-151.0,0.0002158,2]
[328627222,1717626643678,-151.0,0.0002158,2]
[328627223,1717626643688,-169.041988,0.0002158,2]
[328627224,1717626643698,-169.041988,0.0002158,2]
[328627225,1717626643709,-3000.0,0.0002159,2]
[328627226,1717626643719,-3000.0,0.000216,2]
[328627227,1717626643731,-3000.0,0.0002161,2]
[328627228,1717626643741,-3000.0,0.0002162,2]
[328627229,1717626643752,-3000.0,0.0002163,2]
[328627230,1717626643762,-151.0,0.0002163,2]
[328627231,1717626643771,-165.928436,0.0002163,2]
[328627232,1717626643780,-165.928436,0.0002163,2]
[328627233,1717626643789,-151.0,0.0002163,2]
[328627234,1717626643799,-151.0,0.0002163,2]
[328627235,1717626643808,-169.041988,0.0002163,2]
[328627236,1717626643818,-169.041988,0.0002163,2]
[328627237,1717626643828,-3000.0,0.0002164,2]
[328627238,1717626643838,-987.581551,0.00021644,2]
[328627239,1717626643847,-987.581551,0.00021644,2]
[328627240,1717626643856,-987.581551,0.00021644,2]
[328627241,1717626643866,-987.581551,0.00021644,2]
[328627242,1717626643875,-987.581551,0.00021644,2]
[328627243,1717626643884,-987.581551,0.00021644,2]
[328627244,1717626643893,-987.581551,0.00021644,2]
[328627245,1717626643907,-987.581551,0.00021644,2]
[328627246,1717626643916,-987.581551,0.00021644,2]
[328627247,1717626643925,-987.581551,0.00021644,2]
[328627248,1717626643935,-203.439916,0.00021644,2]
[328627249,1717626643944,-165.928436,0.00021644,2]
[328627250,1717626643953,-165.928436,0.00021644,2]
[328627251,1717626643962,-151.0,0.00021644,2]
[328627252,1717626643972,-151.0,0.00021644,2]
[328627253,1717626643981,-169.041988,0.00021644,2]
[328627254,1717626643991,-987.581551,0.0002165,2]
[328627255,1717626644000,-987.581551,0.0002165,2]
[328627256,1717626644009,-5531.995402,0.0002165,2]
[328627257,1717626644018,-239.8138,0.00021807,2]
[328627258,1717626644027,-270.0,0.000219,2]
[328627259,1717626644037,-230.74540431,0.000219,2]
[328627260,1717626644045,-20468.15380428,0.00021917,7]
[328627261,1717626644055,-500.0,0.00021917,2]
[328627262,1717626644064,-987.581551,0.00021917,2]
[328627263,1717626644074,-987.581551,0.00021917,2]
[328627264,1717626644083,-987.581551,0.00021917,2]
[328627265,1717626644093,-987.581551,0.00021917,2]
[328627266,1717626644101,-500.0,0.00021917,2]
[328627267,1717626644110,-365.5822588,0.00021917,2]
[328627268,1717626644119,-500.0,0.00021917,2]
[328627269,1717626644129,-500.0,0.00021917,2]
[328627270,1717626644138,-500.0,0.00021917,2]
[328627271,1717626644147,-619.39,0.00021917,2]
[328627272,1717626644156,-500.0,0.00021917,2]
[328627273,1717626644165,-500.0,0.00021917,2]
[328627274,1717626644174,-500.0,0.00021917,2]
[328627275,1717626644183,-165.928436,0.00021917,2]
[328627276,1717626644192,-165.928436,0.00021917,2]
[328627277,1717626644200,-165.928436,0.00021917,2]
[328627278,1717626644210,-165.928436,0.00021917,2]
[328627279,1717626644219,-500.0,0.00021917,2]
[328627280,1717626644228,-500.0,0.00021917,2]
[328627281,1717626644238,-500.0,0.00021917,2]
[328627282,1717626644247,-500.0,0.00021917,2]
[328627283,1717626644256,-500.0,0.00021917,2]
[328627284,1717626644266,-183.68247727,0.00021917,2]
[328627285,1717626644275,-500.0,0.00021917,2]
[328627286,1717626644284,-500.0,0.00021917,2]
[328627287,1717626644293,-500.0,0.00021917,2]
[328627288,1717626644302,-500.0,0.00021917,2]
[328627289,1717626644312,-630.6169235,0.00021917,2]
[328627290,1717626644322,-500.0,0.00021917,2]
[328627291,1717626644331,-151.0,0.00021917,2]
[328627292,1717626644341,-151.0,0.00021917,2]
[328627293,1717626644350,-372.05345955,0.00021917,2]
[328627294,1717626644359,-500.0,0.00021917,2]
[328627295,1717626644369,-500.0,0.00021917,2]
[328627296,1717626644380,-500.0,0.00021917,2]
[328627297,1717626644390,-500.0,0.00021917,2]
[328627298,1717626644399,-500.0,0.00021917,2]
[328627299,1717626644409,-151.0,0.00021917,2]
[328627300,1717626644419,-151.0,0.00021917,2]
[328627301,1717626644428,-500.0,0.00021917,2]
[328627302,1717626644437,-500.0,0.00021917,2]
[328627303,1717626644446,-500.0,0.00021917,2]
[328627304,1717626644455,-500.0,0.00021917,2]
[328627305,1717626644464,-500.0,0.00021917,2]
[328627306,1717626644474,-169.041988,0.00021917,2]
[328627307,1717626644483,-169.041988,0.00021917,2]
[328627308,1717626644493,-151.0,0.00021918,2]
[328627309,1717626644502,-151.0,0.00021918,2]
[328627310,1717626644511,-151.0,0.00021918,2]
[328627311,1717626644520,-151.0,0.00021918,2]
[328627312,1717626644529,-151.0,0.00021918,2]
[328627313,1717626644538,-151.0,0.00021918,2]
[328627314,1717626644547,-151.0,0.00021918,2]
[328627315,1717626644556,-180.564873,0.00021918,2]
[328627316,1717626644565,-166.666666,0.00021918,2]
[328627317,1717626644574,-2640.54445146,0.00022,7]
[328627318,1717626644584,-30968.28771264,0.00022,2]
[328627319,1717626644593,-987.581551,0.00022,2]
[328627320,1717626644603,-987.581551,0.00022,2]
[328627321,1717626644612,-165.928436,0.00022,2]
[328627322,1717626644621,-165.928436,0.00022,2]
[328627323,1717626644634,-151.0,0.00022,2]
[328627324,1717626644644,-151.0,0.00022,2]
[328627325,1717626644655,-169.041988,0.00022,2]
[328627326,1717626644664,-154.98450155,0.00022071,2]
[328627327,1717626644673,-620.1535177,0.00022072,2]
[328627328,1717626644683,-624.16065565,0.000221,2]
[328627329,1717626644691,-500.0,0.00022191,2]
[328627330,1717626644702,-265.88395094,0.00022191,2]
[328627331,1717626644711,-500.0,0.00022191,2]
[328627332,1717626644723,-500.0,0.00022191,2]
[328627333,1717626644732,-500.0,0.00022191,2]
[328627334,1717626644742,-500.0,0.00022191,2]
[328627335,1717626644752,-165.928436,0.00022191,2]
[328627336,1717626644762,-165.928436,0.00022191,2]
[328627337,1717626644773,-500.0,0.00022191,2]
[328627338,1717626644784,-500.0,0.00022191,2]
[328627339,1717626644795,-500.0,0.00022191,2]
[328627340,1717626644804,-500.0,0.00022191,2]
[328627341,1717626644813,-500.0,0.00022191,2]
[328627342,1717626644823,-500.0,0.00022191,2]
[328627343,1717626644833,-500.0,0.00022191,2]
[328627344,1717626644843,-500.0,0.00022191,2]
[328627345,1717626644854,-500.0,0.00022191,2]
[328627346,1717626644863,-151.0,0.00022191,2]
[328627347,1717626644874,-500.0,0.00022191,2]
[328627348,1717626644885,-500.0,0.00022191,2]
[328627349,1717626644898,-548.94,0.00022191,2]
[328627350,1717626644912,-500.0,0.00022191,2]
[328627351,1717626644922,-151.0,0.00022191,2]
[328627352,1717626644932,-500.0,0.00022191,2]
[328627353,1717626644941,-500.0,0.00022191,2]
[328627354,1717626644950,-500.0,0.00022191,2]
[328627355,1717626644959,-169.041988,0.00022191,2]
[328627356,1717626644969,-153.0,0.00022219,2]
[328627357,1717626644982,-292.2198683,0.00022219,2]
[328627358,1717626644991,-153.0,0.00022219,2]
[328627359,1717626645001,-292.2198683,0.00022219,2]
[328627360,1717626645011,-153.0,0.00022219,2]
[328627361,1717626645020,-292.2198683,0.00022219,2]
[328627362,1717626645030,-153.0,0.00022219,2]
[328627363,1717626645039,-292.2198683,0.00022219,2]
[328627364,1717626645048,-153.0,0.00022219,2]
[328627365,1717626645058,-153.0,0.00022219,2]
[328627366,1717626645068,-987.581551,0.00022319,2]
[328627367,1717626645077,-987.581546,0.00022319,2]
[328627368,1717626645088,-150.0,0.00022319,2]
[328627369,1717626645098,-498.0,0.00022319,2]
[328627370,1717626645107,-166.666666,0.00022431,2]
[328627371,1717626645118,-514.33683186,0.00022465,2]
[328627372,1717626645129,-500.0,0.00022465,2]
[328627373,1717626645138,-500.0,0.00022465,2]
[328627374,1717626645148,-500.0,0.00022465,2]
[328627375,1717626645158,-500.0,0.00022465,2]
[328627376,1717626645168,-165.928436,0.00022465,2]
[328627377,1717626645177,-165.928434,0.00022465,2]
[328627378,1717626645187,-500.0,0.00022465,2]
[328627379,1717626645197,-500.0,0.00022465,2]
[328627380,1717626645206,-500.0,0.00022465,2]
[328627381,1717626645216,-500.0,0.00022465,2]
[328627382,1717626645226,-500.0,0.00022465,2]
[328627383,1717626645236,-500.0,0.00022465,2]
[328627384,1717626645245,-500.0,0.00022465,2]
[328627385,1717626645255,-151.0,0.00022465,2]
[328627386,1717626645264,-500.0,0.00022465,2]
[328627387,1717626645274,-500.0,0.00022465,2]
[328627388,1717626645283,-500.0,0.00022465,2]
[328627389,1717626645293,-283.885987,0.00022465,2]
[328627390,1717626645303,-191.71,0.00022465,2]
[328627391,1717626645313,-500.0,0.00022465,2]
[328627392,1717626645322,-169.041988,0.00022465,2]
[328627393,1717626645333,-1370.0670216,0.000225,2]
[328627405,1717626648306,500.0,0.00029668,40]
[328627406,1717626648574,500.0,0.00029668,40]
[328627407,1717626649161,500.0,0.00029668,40]
[328627408,1717626649454,500.0,0.00029668,40]
[328627409,1717626650739,500.0,0.00029668,40]
[328627410,1717626651254,500.0,0.00029668,40]
[328627411,1717626651375,500.0,0.00029668,40]
[328627412,1717626651754,317.67,0.00029668,40]
[328627414,1717626672006,500.0,0.00029668,40]
[328627415,1717626672335,500.0,0.00029668,40]
[328627416,1717626672645,500.0,0.00029668,40]
[328627417,1717626672914,500.0,0.00029668,40]
[328627418,1717626673196,500.0,0.00029668,40]
[328627419,1717626673582,500.0,0.00029668,40]
[328627420,1717626673802,500.0,0.00029668,40]
[328627421,1717626674106,500.0,0.00029668,40]
[328627422,1717626674720,500.0,0.00029668,40]
[328627423,1717626675015,500.0,0.00029668,40]
[328627424,1717626675327,500.0,0.00029668,40]
[328627425,1717626675617,500.0,0.00029668,40]
[328627426,1717626675920,500.0,0.00029668,40]
[328627427,1717626676209,500.0,0.00029668,40]
[328627428,1717626676521,531.02,0.00029668,40]
[328627430,1717626691381,923.52744316,0.00014,2]
[328627431,1717626691922,154.98450155,9.999e-05,2]
[328627432,1717626696776,1342.19305774,9.999e-05,2]
[328627434,1717626706624,926.80712558,9.999e-05,2]
[328627437,1717626713816,187.72279245,9.999e-05,2]
[328627446,1717626726075,2640.8656152,9.999e-05,2]
[328627447,1717626731260,999.0,0.00029668,40]
[328627448,1717626731584,1029.7,0.00029668,40]
[328627450,1717626741817,302.73262901,9.999e-05,2]
[328627451,1717626746754,500.0,0.00029668,40]
[328627452,1717626747017,500.0,0.00029668,40]
[328627453,1717626747307,500.0,0.00029668,40]
[328627454,1717626747592,500.0,0.00029668,40]
[328627455,1717626747871,434.93,0.00029668,40]
[328627456,1717626754684,485.64,0.00029668,40]
[328627457,1717626760136,500.0,0.00029668,40]
[328627458,1717626760410,500.0,0.00029668,40]
[328627459,1717626760715,500.0,0.00029668,40]
[328627460,1717626780956,500.0,0.00029668,40]
[328627461,1717626781238,500.0,0.00029668,40]
[328627462,1717626781692,500.0,0.00029668,40]
[328627463,1717626781976,500.0,0.00029668,40]
[328627464,1717626782278,500.0,0.00029668,40]
[328627465,1717626782585,500.0,0.00029668,40]
[328627466,1717626782872,500.0,0.00029668,40]
[328627467,1717626783179,320.70012649,0.00029668,40]
[328627468,1717626787600,500.0,0.00029668,40]
[328627469,1717626787878,500.0,0.00029668,40]
[328627470,1717626788162,500.0,0.00029668,40]
[328627471,1717626788460,500.0,0.00029668,40]
[328627472,1717626788749,583.73,0.00029668,40]
[328627473,1717626791945,441.07,0.00029668,40]
[328627474,1717626796826,532.9,0.00029668,40]
[328627475,1717626798776,500.0,0.00029668,40]
[328627476,1717626798977,500.0,0.00029668,40]
[328627477,1717626799118,500.0,0.00029668,40]
[328627478,1717626799405,500.0,0.00029668,40]
[328627479,1717626799767,500.0,0.00029668,40]
[328627480,1717626800232,500.0,0.00029668,40]
[328627481,1717626800513,500.0,0.00029668,40]
[328627482,1717626800803,500.0,0.00029668,40]
[328627483,1717626801257,500.0,0.00029668,40]
[328627484,1717626801530,500.0,0.00029668,40]
[328627485,1717626801823,500.0,0.00029668,40]
[328627486,1717626802134,500.0,0.00029668,40]
[328627487,1717626802456,500.0,0.00029668,40]
[328627488,1717626803066,500.0,0.00029668,40]
[328627489,1717626803375,500.0,0.00029668,40]
[328627490,1717626803671,500.0,0.00029668,40]
[328627491,1717626803964,500.0,0.00029668,40]
[328627492,1717626804263,500.0,0.00029668,40]
[328627493,1717626804569,500.0,0.00029668,40]
[328627494,1717626804861,500.0,0.00029668,40]
[328627495,1717626805157,500.0,0.00029668,40]
[328627496,1717626805426,500.0,0.00029668,40]
[328627497,1717626805693,500.0,0.00029668,40]
[328627498,1717626805995,196.17,0.00029668,40]
[328627499,1717626819828,337.91,0.00029668,40]
[328627500,1717626820815,500.0,0.00029668,40]
[328627501,1717626821085,529.82,0.00029668,40]
[328627504,1717626828705,500.0,0.00029668,40]
[328627505,1717626828991,500.0,0.00029668,40]
[328627506,1717626829312,500.0,0.00029668,40]
[328627507,1717626829593,500.0,0.00029668,40]
[328627508,1717626829859,500.0,0.00029668,40]
[328627509,1717626830175,500.0,0.00029668,40]
[328627510,1717626830485,500.0,0.00029668,40]
[328627511,1717626830795,500.0,0.00029668,40]
[328627512,1717626831152,500.0,0.00029668,40]
[328627513,1717626831442,500.0,0.00029668,40]
[328627514,1717626831783,500.0,0.00029668,40]
[328627515,1717626832065,500.0,0.00029668,40]
[328627516,1717626832339,500.0,0.00029668,40]
[328627517,1717626832648,455.59,0.00029668,40]
[328627518,1717626834808,216.1777469,9.999e-05,2]
[328627521,1717626856528,500.0,0.00029668,40]
[328627522,1717626857172,500.0,0.00029668,40]
[328627523,1717626867608,500.0,0.00029668,40]
[328627524,1717626867878,500.0,0.00029668,40]
[328627525,1717626868162,500.0,0.00029668,40]
[328627526,1717626868444,500.0,0.00029668,40]
[328627527,1717626868732,500.0,0.00029668,40]
[328627528,1717626868994,500.0,0.00029668,40]
[328627529,1717626869265,438.79,0.00029668,40]
[328627530,1717626870693,500.0,0.00029668,40]
[328627531,1717626871003,500.0,0.00029668,40]
[328627532,1717626872091,500.0,0.00029668,40]
[328627533,1717626872130,594.16,0.00029668,40]
[328627534,1717626874836,500.0,0.00029668,40]
[328627535,1717626875531,331.78,0.00029668,40]
[328627536,1717626880698,500.0,0.00029668,40]
[328627537,1717626899938,500.0,0.00029668,40]
[328627538,1717626921659,500.0,0.00029668,40]
[328627539,1717626921942,611.25,0.00029668,40]
[328627541,1717626976103,500.0,0.00029668,40]
[328627542,1717626976387,500.0,0.00029668,40]
[328627543,1717626976703,500.0,0.00029668,40]
[328627544,1717626976976,486.33563688,0.00029668,40]
[328627546,1717627055334,284.3738385,0.000137,2]
[328627551,1717627101333,500.0,0.00029668,40]
[328627552,1717627101616,500.0,0.00029668,40]
[328627553,1717627101911,500.0,0.00029668,40]
[328627554,1717627102199,500.0,0.00029668,40]
[328627555,1717627102486,391.38,0.00029668,40]
[328627664,1717627832438,-157.03683052,0.0001725,2]
[328627666,1717627832448,-2032.83624649,0.0001725,2]
[328627691,1717627840390,-86.98007389,0.0001725,2]
[328627692,1717627840400,-211.666805,0.00017259,2]
[328627693,1717627840408,-1562.29355703,0.000176,2]
[328627694,1717627840421,-411.24624034,0.000176,2]
[328627695,1717627840431,-10480.39529953,0.00017898,2]
[328627696,1717627840440,-710.4329038,0.00018,2]
[328627697,1717627840449,-502.847043,0.00018892,2]
[328627698,1717627840458,-1102.14153259,0.00018991,2]
[328627699,1717627840467,-9335.78502786,0.00018992,2]
[328627700,1717627840477,-162.96737404,0.00019177,2]
[328627701,1717627840486,-169.865379,0.00019178,2]
[328627702,1717627840496,-502.84704296,0.00020036,2]
[328627703,1717627840505,-178.05903778,0.00020492,2]
[328627704,1717627840514,-500.0,0.00020592,2]
[328627705,1717627840524,-500.0,0.00020592,2]
[328627706,1717627840538,-500.0,0.00020592,2]
[328627707,1717627840549,-500.0,0.00020592,2]
[328627708,1717627840559,-500.0,0.00020592,2]
[328627709,1717627840568,-500.0,0.00020592,2]
[328627710,1717627840576,-500.0,0.00020592,2]
[328627711,1717627840586,-500.0,0.00020592,2]
[328627712,1717627840595,-258.51941938,0.00020592,2]
[328627713,1717627840604,-500.0,0.00020592,2]
[328627714,1717627840613,-438.72847085,0.00020592,2]
[328627715,1717627840623,-500.0,0.00020592,2]
[328627716,1717627840632,-627.09370939,0.00020592,2]
[328627717,1717627840642,-216.51951304,0.00020592,2]
[328627718,1717627840651,-500.0,0.00020592,2]
[328627719,1717627840660,-500.0,0.00020592,2]
[328627720,1717627840669,-500.0,0.00020592,2]
[328627721,1717627840679,-500.0,0.00020592,2]
[328627722,1717627840688,-500.0,0.00020592,2]
[328627723,1717627840697,-500.0,0.00020592,2]
[328627724,1717627840706,-175.21164368,0.00020592,2]
[328627725,1717627840716,-500.0,0.00020592,2]
[328627726,1717627840725,-500.0,0.00020592,2]
[328627727,1717627840734,-500.0,0.00020592,2]
[328627728,1717627840744,-326.26597886,0.00020592,2]
[328627729,1717627840753,-500.0,0.00020592,2]
[328627730,1717627840762,-435.03695883,0.00020592,2]
[328627731,1717627840772,-500.0,0.00020592,2]
[328627732,1717627840781,-500.0,0.00020592,2]
[328627733,1717627840791,-500.0,0.00020592,2]
[328627734,1717627840801,-500.0,0.00020592,2]
[328627735,1717627840810,-483.04016116,0.00020592,2]
[328627736,1717627840819,-500.0,0.00020592,2]
[328627737,1717627840829,-500.0,0.00020592,2]
[328627738,1717627840838,-500.0,0.00020592,2]
[328627739,1717627840847,-500.0,0.00020592,2]
[328627740,1717627840856,-500.0,0.00020592,2]
[328627741,1717627840868,-500.0,0.00020592,2]
[328627742,1717627840877,-500.0,0.00020592,2]
[328627743,1717627840887,-500.0,0.00020592,2]
[328627744,1717627840896,-500.0,0.00020592,2]
[328627745,1717627840906,-500.0,0.00020592,2]
[328627746,1717627840916,-500.0,0.00020592,2]
[328627747,1717627840927,-500.0,0.00020592,2]
[328627748,1717627840939,-500.0,0.00020592,2]
[328627749,1717627840948,-500.0,0.00020592,2]
[328627750,1717627840959,-500.0,0.00020592,2]
[328627751,1717627840968,-500.0,0.00020592,2]
[328627752,1717627840978,-500.0,0.00020592,2]
[328627753,1717627840988,-500.0,0.00020592,2]
[328627754,1717627840998,-500.0,0.00020592,2]
[328627755,1717627841008,-500.0,0.00020592,2]
[328627756,1717627841018,-500.0,0.00020592,2]
[328627757,1717627841027,-500.0,0.00020592,2]
[328627758,1717627841036,-500.0,0.00020592,2]
[328627759,1717627841046,-500.0,0.00020592,2]
[328627760,1717627841057,-500.0,0.00020592,2]
[328627761,1717627841066,-427.63723369,0.00020592,2]
[328627762,1717627841075,-163.3333236,0.00020593,2]
[328627763,1717627841153,-10882.54,0.00020593,2]
[328627798,1717627842807,-302.73262901,0.00017249,2]
[328627800,1717627842817,-197.63186717,0.00020593,2]
[328627803,1717627842829,-596.98274629,0.00020593,2]